fUST/lending_fUST_20241104
["ID","MTS","AMOUNT","RATE_DAILY","PERIOD"]
[341218439,1730672841412,-153.0,0.00038082,2]
[341218440,1730672841433,-153.0,0.00038082,2]
[341218441,1730672841453,-153.0,0.00038082,2]
[341218442,1730672841475,-153.0,0.00038082,2]
[341218443,1730672841500,-153.0,0.00038082,2]
[341218444,1730672841522,-153.0,0.00038082,2]
[341218445,1730672841543,-153.0,0.00038082,2]
[341218446,1730672841563,-153.0,0.00038082,2]
[341218447,1730672841584,-153.0,0.00038082,2]
[341218448,1730672841605,-215.71279228,0.00038426,2]
[341218449,1730672841626,-410.59220071,0.00038489,4]
[341218450,1730672841648,-500.0,0.0003849,2]
[341218451,1730672841669,-741.44,0.000385,2]
[341218452,1730672841690,-422.77869743,0.00038568,2]
[341218453,1730672841711,-176.649876,0.00038575,2]
[341218454,1730672841732,-1000.0,0.000386,2]
[341218455,1730672841757,-153.79,0.000386,31]
[341218456,1730672841781,-153.79,0.000386,31]
[341218457,1730672841806,-153.79,0.000386,31]
[341218458,1730672841830,-153.79,0.000386,31]
[341218459,1730672841854,-153.79,0.000386,31]
[341218460,1730672841879,-153.79,0.000386,31]
[341218461,1730672841911,-153.79,0.000386,31]
[341218462,1730672841939,-1070.84606034,0.000386,2]
[341218463,1730672841959,-156.93,0.00038689,2]
[341218464,1730672841981,-236.49,0.0003869,3]
[341218465,1730672842005,-578.72505183,0.0003869,3]
[341218467,1730672853132,-130.77494817,0.0003869,3]
[341218468,1730672853162,-482.13851076,0.0003869,10]
[341218470,1730672916812,14673.59125443,0.000134,2]
[341218471,1730672927518,-3201.0,0.00020377,2]
[341218472,1730672931049,560.70921701,0.000149,2]
[341218473,1730672945100,-2491.38163196,0.00025,2]
[341218474,1730672949251,1082.68193669,0.0002,10]
[341218475,1730672949273,155.11806331,0.0002,10]
[341218476,1730672955094,-315.0,0.00033299,2]
[341218477,1730672955114,-15828.84828143,0.000333,2]
[341218478,1730672967191,-10060.63118333,0.000333,2]
[341218479,1730672974125,-401.1676645,0.000333,2]
[341218480,1730672974147,-936.99030278,0.00033411,2]
[341218481,1730672974169,-359.24,0.00033501,10]
[341218482,1730672974190,-268.62594987,0.0003351,7]
[341218483,1730672974212,-233.06255455,0.0003351,7]
[341218484,1730672974233,-936.99030274,0.00034624,2]
[341218485,1730672980527,472.98,0.00033501,3]
[341218488,1730672990862,1090.57,0.0003351,3]
[341218489,1730672991201,1090.57,0.00033784,3]
[341218490,1730672991460,1090.57,0.00034058,3]
[341218491,1730672991721,1090.57,0.00034332,3]
[341218492,1730672992007,1090.57,0.00034606,3]
[341218493,1730672992301,1090.57,0.0003488,3]
[341218549,1730673039736,-150.0,0.00033511,2]
[341218550,1730673039746,-865.25701026,0.00033511,2]
[341218551,1730673040017,150.15104,0.000313,2]
[341218606,1730673045116,-627.9117207,0.00033511,2]
[341218615,1730673047162,203.0,0.0003,2]
[341218616,1730673047495,203.0,0.00030411,2]
[341218617,1730673047844,203.0,0.00031644,2]
[341218618,1730673049043,2218.24,0.00033972,120]
[341218619,1730673049582,207.0,0.00033226,2]
[341218620,1730673063055,270.18,0.0003351,2]
[341218621,1730673063293,270.18,0.0003351,2]
[341218622,1730673063511,270.18,0.0003351,2]
[341218623,1730673063739,270.18,0.0003351,2]
[341218624,1730673063959,270.18,0.0003351,2]
[341218625,1730673064353,270.18,0.0003351,2]
[341218626,1730673064575,270.18,0.0003351,2]
[341218627,1730673064830,270.18,0.0003351,2]
[341218628,1730673065213,270.18,0.0003351,2]
[341218629,1730673070237,212.26878772,0.00033411,2]
[341218630,1730673133687,151.0,0.0003,120]
[341218631,1730673134603,151.0,0.00034603,120]
[341218632,1730673138289,199.839,0.00027601,2]
[341218633,1730673271476,182.796484,0.00013973,2]
[341218640,1730673767663,173.817923,0.00013973,2]
[341218645,1730673933126,-151.0,0.0003,120]
[341218646,1730673933152,-151.0,0.0003,120]
[341218647,1730673933174,-791.0136767,0.00030906,2]
[341218648,1730673933198,-1227.21927592,0.00031257,2]
[341218649,1730674027143,-1568.43417368,0.00031257,2]
[341218650,1730674027178,-184.78710337,0.00031257,2]
[341218651,1730674033107,-546.69642202,0.00031257,2]
[341218652,1730674033136,-1978.51159281,0.00031257,2]
[341218653,1730674033160,-158.15,0.000334,31]
[341218654,1730674033184,-500.0,0.00033507,2]
[341218655,1730674033207,-500.0,0.00033507,4]
[341218656,1730674033228,-461.52432269,0.00033507,4]
[341218657,1730674033252,-1222.86,0.00033507,3]
[341218658,1730674033275,-500.0,0.00033507,4]
[341218659,1730674033296,-500.0,0.00033507,4]
[341218660,1730674033317,-163.14378818,0.00033507,7]
[341218661,1730674033339,-188.03816491,0.00033507,7]
[341218662,1730674033359,-500.0,0.0003351,4]
[341218663,1730674033379,-250.0,0.0003351,4]
[341218664,1730674033403,-500.0,0.0003351,4]
[341218665,1730674033423,-500.0,0.0003351,4]
[341218666,1730674033443,-500.0,0.0003351,7]
[341218667,1730674033464,-500.0,0.00033781,2]
[341218668,1730674033486,-500.0,0.00033781,4]
[341218669,1730674033510,-1222.86,0.00033781,3]
[341218670,1730674033533,-500.0,0.00033781,4]
[341218671,1730674033567,-500.0,0.00033781,4]
[341218672,1730674033592,-498.0,0.00033784,4]
[341218673,1730674033615,-500.0,0.00033784,4]
[341218674,1730674033637,-2125.81,0.00033972,120]
[341218675,1730674033658,-57.08524701,0.00034055,2]
[341218676,1730674149156,-1230.48677252,0.00033408,2]
[341218677,1730674149180,-500.0,0.00033507,4]
[341218678,1730674149207,-500.0,0.00033507,4]
[341218679,1730674149238,-500.0,0.00033781,4]
[341218680,1730674149265,-500.0,0.00033781,4]
[341218681,1730674149292,-442.91475299,0.00034055,2]
[341218682,1730674149317,-500.0,0.00034055,4]
[341218683,1730674149344,-1222.86,0.00034055,3]
[341218684,1730674149370,-500.0,0.00034055,4]
[341218685,1730674149394,-500.0,0.00034055,4]
[341218686,1730674149421,-500.0,0.00034055,4]
[341218687,1730674149445,-500.0,0.00034195,10]
[341218688,1730674149470,-151.0,0.00034274,120]
[341218689,1730674149496,-500.0,0.00034329,2]
[341218690,1730674149522,-500.0,0.00034329,4]
[341218691,1730674149549,-1222.86,0.00034329,3]
[341218692,1730674149573,-500.0,0.00034329,4]
[341218693,1730674149710,-500.0,0.00034329,4]
[341218694,1730674149733,-500.0,0.00034329,4]
[341218695,1730674149754,-173.817923,0.00034475,2]
[341218696,1730674149775,-500.0,0.00034603,2]
[341218697,1730674149795,-478.64906631,0.00034603,4]
[341218698,1730674154159,-21.35093369,0.00034603,4]
[341218699,1730674154185,-1222.86,0.00034603,3]
[341218700,1730674154212,-500.0,0.00034603,4]
[341218701,1730674154232,-500.0,0.00034603,4]
[341218702,1730674154256,-500.0,0.00034603,4]
[341218703,1730674154278,-151.0,0.00034621,14]
[341218704,1730674154298,-151.0,0.00034621,14]
[341218705,1730674154319,-267.572673,0.00034621,14]
[341218706,1730674154341,-267.572673,0.00034621,14]
[341218707,1730674154362,-90.4650607,0.00034621,14]
[341218708,1730674155100,-60.5349393,0.00034621,14]
[341218709,1730674155121,-151.0,0.00034621,14]
[341218710,1730674155142,-151.0,0.00034621,14]
[341218711,1730674155169,-151.0,0.00034621,14]
[341218712,1730674155190,-151.0,0.00034621,14]
[341218713,1730674155214,-151.0,0.00034621,14]
[341218714,1730674155237,-151.0,0.00034621,14]
[341218715,1730674155258,-151.0,0.00034621,14]
[341218716,1730674155280,-151.0,0.00034621,14]
[341218717,1730674155300,-151.0,0.00034621,14]
[341218718,1730674155321,-151.0,0.00034621,14]
[341218719,1730674155344,-1150.853937,0.00034621,14]
[341218720,1730674155367,-1021.957274,0.00034621,14]
[341218721,1730674155391,-744.1735506,0.00034621,14]
[341218722,1730674171263,968.1,0.00033507,3]
[341218723,1730674171548,968.1,0.00033781,3]
[341218724,1730674171812,968.1,0.00034055,3]
[341218725,1730674172089,968.1,0.00034329,3]
[341218726,1730674204806,500.0,0.00033507,4]
[341218727,1730674205106,500.0,0.00033781,4]
[341218728,1730674205378,98.15169007,0.00034055,4]
[341218761,1730674238993,-20.53190037,0.00033508,2]
[341218762,1730674239096,-43491.8735212,0.00033508,2]
[341218763,1730674239108,-82348.21824935,0.00033508,2]
[341218764,1730674239121,-272.65662015,0.00033508,4]
[341218765,1730674239132,-150.0,0.00033508,2]
[341218766,1730674239142,-150.0,0.00033508,2]
[341218767,1730674239152,-2037.24,0.00033972,120]
[341218768,1730674239163,-401.84830993,0.00034055,4]
[341218769,1730674239174,-500.0,0.00034329,4]
[341218770,1730674239184,-968.1,0.00034603,3]
[341218771,1730674239194,-500.0,0.00034603,4]
[341218772,1730674239203,-1021.957274,0.00034621,14]
[341218773,1730674239212,-151.0,0.00034621,14]
[341218774,1730674239223,-1255.03439,0.00034621,14]
[341218775,1730674239236,-151.0,0.00034621,14]
[341218776,1730674239246,-1255.03439,0.00034621,14]
[341218777,1730674239256,-688.815427,0.00034621,14]
[341218778,1730674239266,-688.815427,0.00034621,14]
[341218779,1730674239277,-244.821254,0.00034621,14]
[341218780,1730674239287,-244.821254,0.00034621,14]
[341218781,1730674239296,-151.0,0.00034621,14]
[341218782,1730674239308,-151.0,0.00034621,14]
[341218783,1730674239318,-151.0,0.00034621,14]
[341218784,1730674239327,-151.0,0.00034621,14]
[341218785,1730674239336,-168.417887,0.00034621,14]
[341218786,1730674239346,-168.417887,0.00034621,14]
[341218787,1730674239355,-151.0,0.00034621,14]
[341218788,1730674239365,-151.0,0.00034621,14]
[341218789,1730674239375,-151.0,0.00034621,14]
[341218790,1730674239385,-151.0,0.00034621,14]
[341218791,1730674239395,-151.0,0.00034621,14]
[341218792,1730674239406,-151.0,0.00034621,14]
[341218793,1730674239418,-352.992471,0.00034621,14]
[341218794,1730674239427,-352.992471,0.00034621,14]
[341218795,1730674239436,-352.992471,0.00034621,14]
[341218796,1730674239445,-352.992471,0.00034621,14]
[341218797,1730674239456,-227.271348,0.00034621,14]
[341218798,1730674239467,-227.271348,0.00034621,14]
[341218799,1730674239480,-151.0,0.00034621,2]
[341218800,1730674239490,-152.704264,0.00034621,2]
[341218801,1730674239502,-227.271348,0.00034621,14]
[341218802,1730674239512,-227.271348,0.00034621,14]
[341218803,1730674239523,-151.0,0.00034621,14]
[341218804,1730674239534,-151.0,0.00034621,14]
[341218805,1730674239630,-151.0,0.00034621,14]
[341218806,1730674239641,-151.0,0.00034621,14]
[341218807,1730674239651,-151.0,0.00034621,14]
[341218808,1730674239661,-151.0,0.00034621,14]
[341218809,1730674239670,-785.714306,0.00034621,14]
[341218810,1730674239679,-785.714306,0.00034621,14]
[341218811,1730674239688,-785.714306,0.00034621,14]
[341218812,1730674239697,-785.714306,0.00034621,14]
[341218813,1730674239706,-785.714306,0.00034621,14]
[341218814,1730674239716,-770.90964,0.00034621,14]
[341218815,1730674239726,-785.714306,0.00034621,14]
[341218816,1730674239735,-770.90964,0.00034621,14]
[341218817,1730674239744,-527.996941,0.00034621,14]
[341218818,1730674239754,-527.996941,0.00034621,14]
[341218819,1730674239762,-770.90964,0.00034621,14]
[341218820,1730674239772,-770.90964,0.00034621,14]
[341218821,1730674239781,-770.90964,0.00034621,14]
[341218822,1730674239790,-527.996941,0.00034621,14]
[341218823,1730674239799,-770.90964,0.00034621,14]
[341218824,1730674239809,-527.996941,0.00034621,14]
[341218825,1730674239819,-211.039117,0.00034621,14]
[341218826,1730674239830,-211.039117,0.00034621,14]
[341218827,1730674239839,-211.039117,0.00034621,14]
[341218828,1730674239848,-211.039117,0.00034621,14]
[341218829,1730674239857,-151.0,0.00034621,14]
[341218830,1730674239866,-162.437624,0.00034621,14]
[341218831,1730674239875,-151.0,0.00034621,3]
[341218832,1730674239884,-151.0,0.00034621,3]
[341218833,1730674239893,-185.265266,0.00034621,14]
[341218834,1730674239902,-185.265266,0.00034621,14]
[341218835,1730674239914,-185.265266,0.00034621,14]
[341218836,1730674239924,-185.265266,0.00034621,14]
[341218837,1730674239933,-185.265266,0.00034621,14]
[341218838,1730674239944,-185.265266,0.00034621,14]
[341218839,1730674239954,-151.0,0.00034621,14]
[341218840,1730674239965,-151.0,0.00034621,14]
[341218841,1730674239976,-151.0,0.00034621,14]
[341218842,1730674239987,-151.0,0.00034621,14]
[341218843,1730674239997,-151.0,0.00034621,14]
[341218844,1730674240007,-1599.616261,0.00034621,14]
[341218845,1730674240017,-151.0,0.00034621,14]
[341218846,1730674240027,-1599.616261,0.00034621,14]
[341218847,1730674240037,-1599.616261,0.00034621,14]
[341218848,1730674240047,-151.0,0.00034621,14]
[341218849,1730674240058,-151.0,0.00034621,14]
[341218850,1730674240069,-1599.616261,0.00034621,14]
[341218851,1730674240079,-1599.616261,0.00034621,14]
[341218852,1730674240089,-1599.616261,0.00034621,14]
[341218853,1730674240101,-1487.093379,0.00034621,14]
[341218854,1730674240111,-1487.093379,0.00034621,14]
[341218855,1730674240122,-1487.093379,0.00034621,14]
[341218856,1730674240132,-1487.093379,0.00034621,14]
[341218857,1730674240142,-1487.093379,0.00034621,14]
[341218858,1730674240151,-1487.093379,0.00034621,14]
[341218859,1730674240161,-151.0,0.00034621,14]
[341218860,1730674240171,-151.0,0.00034621,14]
[341218861,1730674240180,-151.0,0.00034621,14]
[341218863,1730674240190,-285.904289,0.00034621,14]
[341218865,1730674240199,-285.904289,0.00034621,14]
[341218866,1730674240208,-285.904289,0.00034621,14]
[341218867,1730674240216,-285.904289,0.00034621,14]
[341218868,1730674240227,-285.904289,0.00034621,14]
[341218869,1730674240237,-285.904289,0.00034621,14]
[341218870,1730674240252,-3822.87347,0.00034621,14]
[341218871,1730674240267,-3822.87347,0.00034621,14]
[341218872,1730674240280,-3822.87347,0.00034621,14]
[341218873,1730674240291,-3822.87347,0.00034621,14]
[341218874,1730674240302,-3822.87347,0.00034621,14]
[341218875,1730674240314,-3822.87347,0.00034621,14]
[341218876,1730674240323,-1555.932826,0.00034621,14]
[341218879,1730674240332,-1555.932826,0.00034621,14]
[341218880,1730674240342,-1555.932826,0.00034621,14]
[341218881,1730674240354,-1555.932826,0.00034621,14]
[341218882,1730674240365,-1555.932826,0.00034621,14]
[341218884,1730674240375,-1555.932826,0.00034621,14]
[341218885,1730674240384,-1555.932826,0.00034621,14]
[341218886,1730674240394,-1555.932826,0.00034621,14]
[341218887,1730674240403,-1056.102562,0.00034621,14]
[341218888,1730674240414,-1056.102562,0.00034621,14]
[341218889,1730674240423,-1056.102562,0.00034621,14]
[341218890,1730674240432,-1056.102562,0.00034621,14]
[341218891,1730674240442,-712.012585,0.00034621,14]
[341218892,1730674240451,-712.012585,0.00034621,14]
[341218893,1730674240461,-712.012585,0.00034621,14]
[341218894,1730674240470,-712.012585,0.00034621,14]
[341218895,1730674240479,-1056.102562,0.00034621,14]
[341218896,1730674240489,-1056.102562,0.00034621,14]
[341218897,1730674240499,-1056.102562,0.00034621,14]
[341218898,1730674240511,-1056.102562,0.00034621,14]
[341218899,1730674240521,-712.012585,0.00034621,14]
[341218900,1730674240531,-151.0,0.00034621,14]
[341218901,1730674240540,-712.012585,0.00034621,14]
[341218903,1730674240549,-151.0,0.00034621,14]
[341218905,1730674240559,-712.012585,0.00034621,14]
[341218906,1730674240569,-151.0,0.00034621,14]
[341218907,1730674240580,-712.012585,0.00034621,14]
[341218908,1730674240590,-151.0,0.00034621,14]
[341218909,1730674240599,-151.0,0.000347,14]
[341218910,1730674240609,-157.074258,0.000347,14]
[341218911,1730674240618,-157.074258,0.000347,14]
[341218912,1730674240627,-263.835979,0.000347,14]
[341218913,1730674240637,-263.835979,0.000347,14]
[341218914,1730674240647,-158.15,0.000347,31]
[341218915,1730674240656,-158.15,0.000347,31]
[341218916,1730674240666,-230.529565,0.000347,14]
[341218917,1730674240675,-688.815427,0.000347,14]
[341218918,1730674240684,-688.815427,0.000347,14]
[341218919,1730674240693,-244.821254,0.000347,14]
[341218920,1730674240702,-244.821254,0.000347,14]
[341218921,1730674240711,-151.0,0.000347,14]
[341218922,1730674240721,-154.789996,0.000347,14]
[341218923,1730674240731,-168.417887,0.000347,14]
[341218924,1730674240740,-168.417887,0.000347,14]
[341218925,1730674240749,-151.0,0.000347,14]
[341218926,1730674240759,-151.0,0.000347,14]
[341218927,1730674240768,-151.0,0.000347,14]
[341218928,1730674240778,-352.992471,0.000347,14]
[341218929,1730674240787,-352.992471,0.000347,14]
[341218930,1730674240796,-227.271348,0.000347,14]
[341218932,1730674240805,-227.271348,0.000347,14]
[341218933,1730674240815,-527.996941,0.000347,14]
[341218934,1730674240824,-527.996941,0.000347,14]
[341218935,1730674240834,-211.039117,0.000347,14]
[341218936,1730674240843,-211.039117,0.000347,14]
[341218937,1730674240852,-151.0,0.000347,14]
[341218938,1730674240861,-151.0,0.000347,14]
[341218939,1730674240875,-151.0,0.000347,14]
[341218940,1730674240884,-151.0,0.000347,14]
[341218941,1730674240893,-1555.932826,0.000347,14]
[341218942,1730674240902,-1555.932826,0.000347,14]
[341218943,1730674240912,-1056.102562,0.000347,14]
[341218944,1730674240922,-712.012585,0.000347,14]
[341218945,1730674240932,-1056.102562,0.000347,14]
[341218946,1730674240942,-712.012585,0.000347,14]
[341218947,1730674240951,-151.0,0.000347,14]
[341218948,1730674240960,-152.306952,0.00034733,14]
[341218949,1730674240970,-500.0,0.00034877,2]
[341218950,1730674240979,-500.0,0.00034877,4]
[341218951,1730674240988,-481.5033917,0.00034877,4]
[341218952,1730674240998,-185.265266,0.00034877,14]
[341218953,1730674241007,-185.265266,0.00034877,14]
[341218954,1730674241017,-500.0,0.00034877,4]
[341218955,1730674241026,-1487.093379,0.00034877,14]
[341218956,1730674241037,-1487.093379,0.00034877,14]
[341218957,1730674241047,-151.0,0.00034877,14]
[341218958,1730674241056,-968.1,0.00034877,3]
[341218959,1730674241066,-3822.87347,0.00034877,14]
[341218960,1730674241075,-3822.87347,0.00034877,14]
[341218961,1730674241085,-500.0,0.00034877,4]
[341218962,1730674241094,-600.0,0.00034879,2]
[341218963,1730674241103,-151.0,0.00034879,14]
[341218964,1730674241114,-785.714306,0.00034879,14]
[341218965,1730674241123,-785.714306,0.00034879,14]
[341218966,1730674241134,-770.90964,0.00034879,14]
[341218967,1730674241145,-770.90964,0.00034879,14]
[341218968,1730674241154,-1599.616261,0.00034879,14]
[341218969,1730674241166,-1599.616261,0.00034879,14]
[341218970,1730674241177,-285.904289,0.00034879,14]
[341218971,1730674241186,-285.904289,0.00034879,14]
[341218972,1730674241198,-1555.932826,0.00034879,14]
[341218973,1730674241207,-1555.932826,0.00034879,14]
[341218974,1730674241217,-1056.102562,0.00034879,14]
[341218975,1730674241226,-712.012585,0.00034879,14]
[341218976,1730674241240,-1056.102562,0.00034879,14]
[341218977,1730674241250,-712.012585,0.00034879,14]
[341218978,1730674241260,-151.0,0.00034879,14]
[341218979,1730674241271,-151.0,0.0003488,14]
[341218980,1730674241280,-151.0,0.0003488,14]
[341218981,1730674241289,-151.0,0.0003488,14]
[341218982,1730674241299,-151.0,0.0003488,14]
[341218983,1730674241309,-151.0,0.0003488,14]
[341218984,1730674241319,-151.0,0.0003488,14]
[341218985,1730674241332,-151.0,0.0003488,14]
[341218986,1730674241341,-151.0,0.0003488,14]
[341218987,1730674241351,-151.0,0.0003488,14]
[341218988,1730674241360,-151.0,0.0003488,14]
[341218989,1730674241370,-1021.957274,0.0003488,14]
[341218990,1730674241379,-1021.957274,0.0003488,14]
[341218991,1730674241388,-1255.03439,0.0003488,14]
[341218992,1730674241398,-151.0,0.0003488,14]
[341218993,1730674241408,-1255.03439,0.0003488,14]
[341218994,1730674241418,-688.815427,0.0003488,14]
[341218995,1730674241428,-688.815427,0.0003488,14]
[341218996,1730674241437,-244.821254,0.0003488,14]
[341218997,1730674241447,-244.821254,0.0003488,14]
[341218998,1730674241456,-151.0,0.0003488,14]
[341218999,1730674241465,-168.417887,0.0003488,14]
[341219000,1730674241475,-168.417887,0.0003488,14]
[341219001,1730674241484,-151.0,0.0003488,14]
[341219002,1730674241494,-151.0,0.0003488,14]
[341219003,1730674241503,-151.0,0.0003488,14]
[341219004,1730674241514,-352.992471,0.0003488,14]
[341219005,1730674241523,-352.992471,0.0003488,14]
[341219006,1730674241533,-227.271348,0.0003488,14]
[341219007,1730674241543,-227.271348,0.0003488,14]
[341219008,1730674241552,-151.0,0.0003488,14]
[341219009,1730674241562,-151.0,0.0003488,14]
[341219010,1730674241571,-785.714306,0.0003488,14]
[341219011,1730674241581,-785.714306,0.0003488,14]
[341219012,1730674241590,-785.714306,0.0003488,14]
[341219013,1730674241599,-785.714306,0.0003488,14]
[341219014,1730674241608,-527.996941,0.0003488,14]
[341219015,1730674241618,-770.90964,0.0003488,14]
[341219016,1730674241628,-770.90964,0.0003488,14]
[341219017,1730674241639,-770.90964,0.0003488,14]
[341219018,1730674241649,-527.996941,0.0003488,14]
[341219019,1730674241660,-770.90964,0.0003488,14]
[341219020,1730674241670,-211.039117,0.0003488,14]
[341219021,1730674241681,-211.039117,0.0003488,14]
[341219022,1730674241693,-185.265266,0.0003488,14]
[341219023,1730674241704,-185.265266,0.0003488,14]
[341219024,1730674241714,-185.265266,0.0003488,14]
[341219025,1730674241725,-185.265266,0.0003488,14]
[341219026,1730674241735,-151.0,0.0003488,14]
[341219027,1730674241747,-151.0,0.0003488,14]
[341219028,1730674241758,-151.0,0.0003488,14]
[341219029,1730674241767,-1599.616261,0.0003488,14]
[341219030,1730674241777,-1599.616261,0.0003488,14]
[341219031,1730674241786,-151.0,0.0003488,14]
[341219032,1730674241795,-1599.616261,0.0003488,14]
[341219033,1730674241805,-1599.616261,0.0003488,14]
[341219034,1730674241815,-1487.093379,0.0003488,14]
[341219035,1730674241826,-1487.093379,0.0003488,14]
[341219036,1730674241835,-1487.093379,0.0003488,14]
[341219037,1730674241845,-1487.093379,0.0003488,14]
[341219038,1730674241855,-151.0,0.0003488,14]
[341219039,1730674241864,-151.0,0.0003488,14]
[341219040,1730674241965,-151.0,0.0003488,14]
[341219041,1730674241976,-285.904289,0.0003488,14]
[341219042,1730674241987,-285.904289,0.0003488,14]
[341219043,1730674241998,-285.904289,0.0003488,14]
[341219044,1730674242007,-285.904289,0.0003488,14]
[341219045,1730674242019,-3822.87347,0.0003488,14]
[341219046,1730674242029,-3822.87347,0.0003488,14]
[341219047,1730674242038,-3822.87347,0.0003488,14]
[341219048,1730674242048,-3822.87347,0.0003488,14]
[341219049,1730674242058,-3822.87347,0.0003488,14]
[341219050,1730674242070,-3822.87347,0.0003488,14]
[341219051,1730674242081,-1555.932826,0.0003488,14]
[341219052,1730674242092,-1555.932826,0.0003488,14]
[341219053,1730674242103,-1555.932826,0.0003488,14]
[341219054,1730674242115,-1555.932826,0.0003488,14]
[341219055,1730674242126,-1555.932826,0.0003488,14]
[341219056,1730674242137,-1555.932826,0.0003488,14]
[341219057,1730674242148,-1555.932826,0.0003488,14]
[341219058,1730674242158,-1555.932833,0.0003488,14]
[341219059,1730674242170,-1056.102562,0.0003488,14]
[341219060,1730674242181,-1056.102562,0.0003488,14]
[341219061,1730674242192,-1056.102562,0.0003488,14]
[341219062,1730674242203,-1056.102562,0.0003488,14]
[341219063,1730674242214,-712.012585,0.0003488,14]
[341219064,1730674242228,-712.012585,0.0003488,14]
[341219065,1730674242241,-712.012585,0.0003488,14]
[341219066,1730674242251,-712.012585,0.0003488,14]
[341219067,1730674242263,-1056.102562,0.0003488,14]
[341219068,1730674242274,-1056.102562,0.0003488,14]
[341219069,1730674242284,-1056.102562,0.0003488,14]
[341219070,1730674242295,-1056.102571,0.0003488,14]
[341219071,1730674242308,-712.012585,0.0003488,14]
[341219072,1730674242319,-151.0,0.0003488,14]
[341219073,1730674242328,-712.012585,0.0003488,14]
[341219074,1730674242339,-151.0,0.0003488,14]
[341219075,1730674242349,-712.012585,0.0003488,14]
[341219076,1730674242358,-151.0,0.0003488,14]
[341219077,1730674242367,-712.012576,0.0003488,14]
[341219078,1730674242377,-176.893658,0.0003488,14]
[341219079,1730674242386,-160.0,0.000349,3]
[341219080,1730674242396,-170.232003,0.00034928,2]
[341219081,1730674242406,-162.235696,0.00034928,2]
[341219082,1730674242415,-151.0,0.00034928,14]
[341219083,1730674242425,-151.0,0.00034928,14]
[341219084,1730674242435,-151.0,0.00034928,14]
[341219085,1730674242445,-151.0,0.00034928,14]
[341219086,1730674242455,-352.992471,0.00034928,14]
[341219087,1730674242464,-352.992471,0.00034928,14]
[341219088,1730674242474,-227.271348,0.00034928,14]
[341219089,1730674242483,-227.271348,0.00034928,14]
[341219090,1730674242493,-527.996941,0.00034928,14]
[341219091,1730674242503,-527.996941,0.00034928,14]
[341219092,1730674242512,-211.039117,0.00034928,14]
[341219093,1730674242521,-211.039117,0.00034928,14]
[341219094,1730674242530,-151.0,0.00034928,14]
[341219095,1730674242540,-151.0,0.00034928,14]
[341219096,1730674242549,-151.0,0.00034928,14]
[341219097,1730674242559,-151.0,0.00034931,14]
[341219098,1730674242570,-151.0,0.00034931,14]
[341219099,1730674242579,-151.0,0.00034931,14]
[341219100,1730674242588,-164.538491,0.00034931,14]
[341219101,1730674242598,-164.538491,0.00034931,14]
[341219102,1730674242607,-151.0,0.00034931,14]
[341219103,1730674242616,-157.074258,0.00034931,14]
[341219104,1730674242626,-157.074258,0.00034931,14]
[341219105,1730674242636,-263.835979,0.00034931,14]
[341219106,1730674242645,-263.835979,0.00034931,14]
[341219107,1730674242654,-151.0,0.00034931,14]
[341219108,1730674242663,-151.0,0.00034931,14]
[341219109,1730674242673,-267.572673,0.00034931,14]